Cogmind - Beta 13 @@@ ROGUE MODE // 2024.04.12 @ 15:31:05 Player: anthonyiye Result: Destroyed by D-53 Grenadier with Mini Grenade Launcher Performance ------------- Evolutions (1) 500 Regions Visited (4) 800 Robots Destroyed (43) 215 Value Destroyed (1051) 1051 Prototype IDs (2) 40 Alien Tech Used (0) 0 Bonus (0) 0 TOTAL SCORE: 2606 Bonus ------- None Cogmind --------- Core Integrity 0/400 Matter 200/300 Energy 99/100 System Corruption 0% Temperature Cool (0) Movement Core (50) Location -9/Mines Parts ------- > --- POWER (1) -------- (None) > --- PROPULSION (2) --- (None) > --- UTILITY (4) ------ (None) > --- WEAPON (2) ------- (None) > --- INVENTORY (5) ---- Light Treads Hacking Suite Improved EM Shotgun EM Pulse Cannon Scythe Peak State ------------ > --- POWER ------------ Ion Engine > --- PROPULSION ------- Light Treads Light Treads > --- UTILITY ---------- High-capacity Storage Unit Signal Interpreter Transport Network Coupler Light Armor Plating > --- WEAPON ----------- Minigun Minigun > --- INVENTORY -------- Light Nuclear Core Light Treads Light Treads Improved Flight Unit Improved Flight Unit Improved Flight Unit Improved Flight Unit Improved Sensor Array Signal Interpreter Transport Network Coupler Hacking Suite Hacking Suite System Shield System Shield Improved EM Shotgun Improved EM Shotgun EM Pulse Cannon Mini Grenade Launcher Mini Grenade Launcher Scythe [Rating: 18] Favorites ----------- Power Ion Engine Engine Ion Engine Propulsion Light Treads Treads Light Treads Wheel Compact Wheel Utility Signal Interpreter Device Disposable Heat Sink Storage High-capacity Storage Unit Processor Signal Interpreter Protection Light Armor Plating Weapon Heavy Assault Rifle Energy Gun Medium Laser Ballistic Gun Heavy Assault Rifle Launcher Mini Grenade Launcher Build | -11 -10 -10 -9 -9 ------- Run | Yrd Mat Min Mat Min Slots Evolved 2 | . . . 2 . Power . | . . . . . Propulsion . | . . . . . Utility 2 | . . . 2 . Weapon . | . . . . . Parts Attached 31 | 5 6 1 18 1 Power 4 | 1 . 1 2 . Engine 4 | 1 . 1 2 . Core . | . . . . . Reactor . | . . . . . Propulsion 8 | 2 1 . 5 . Treads 7 | 2 1 . 4 . Leg . | . . . . . Wheel 1 | . . . 1 . Hover . | . . . . . Flight . | . . . . . Utility 8 | 1 2 . 5 . Device 1 | . . . 1 . Storage 4 | 1 1 . 2 . Processor 2 | . 1 . 1 . Hackware . | . . . . . Protection 1 | . . . 1 . Artifact . | . . . . . Weapon 11 | 1 3 . 6 1 Energy Gun 2 | . 1 . 1 . Energy Cannon . | . . . . . Ballistic Gun 8 | 1 2 . 5 . Ballistic Cannon . | . . . . . Launcher 1 | . . . . 1 Special Weapon . | . . . . . Impact Weapon . | . . . . . Slashing Weapon . | . . . . . Piercing Weapon . | . . . . . Special Melee Weapon . | . . . . . Unidentified Prototypes . | . . . . . Parts Lost 17 | . 4 . 7 6 Power 2 | . 1 . 1 . Propulsion 5 | . 1 . 2 2 Utility 2 | . . . . 2 Weapon 8 | . 2 . 4 2 Highest Loss Streak 6 | . 4 . 3 6 To Critical Strikes . | . . . . . Average Slot Usage (%) 83 | . 84 98 81 96 Engine 10 | . 10 12 10 11 Treads 21 | . 25 28 18 20 Storage 11 | . 13 14 11 11 Processor 12 | . 6 14 14 22 Protection 2 | . . . 2 9 Energy Gun 2 | . 8 . . . Ballistic Gun 20 | . 17 28 21 11 Naked Turns 4 | . . . . 4 Heaviest Build 54 | 10 17 19 54 52 Greatest Support 40 | 40 40 40 40 40 Greatest Overweight (x) 1 | . . . 1 1 Average Overweight (x) . | . . . . . Largest Inventory Capacity 20 | 8 10 10 20 20 Average Capacity 15 | 6 9 10 18 19 Most Carried 20 | 3 9 10 20 20 Average Carried 13 | 2 5 9 16 19 Final Capacity 20 | 8 10 10 20 5 Final Carried 20 | 3 9 10 20 5 Class Distribution -------------------- 55% | Mutant 44% | Scavenger-Mutant Dominant Class ---------------- Mutant | -10/Materials Mutant | -10/Mines Scavenger-Mutant | -9/Materials Scavenger-Mutant | -9/Mines Resources | -11 -10 -10 -9 -9 ----------- Run | Yrd Mat Min Mat Min Matter Collected 1026 | 250 182 62 532 . Remotely . | . . . . . Salvage Created 1160 | . 361 41 735 23 Parts 94 | . 31 7 53 3 Haulers Intercepted 2 | . . . 2 . Recyclers Shooed 2 | . . . 2 . Parts Field Recycled . | . . . . . Retrieved Matter . | . . . . . Parts Self-Destructed . | . . . . . Prevented . | . . . . . Kills | -11 -10 -10 -9 -9 ------- Run | Yrd Mat Min Mat Min Combat Hostiles Destroyed 38 | . 12 3 19 4 Melee 1 | . . . 1 . Guns 35 | . 12 3 18 2 AOE 2 | . . . . 2 Classes Destroyed 6 | . 4 . 2 . Hauler 2 | . . . 2 . Operator 2 | . 1 . 1 . Watcher 1 | . 1 . . . Swarmer 16 | . 5 3 4 4 Grunt 17 | . 7 . 10 . Sentry 5 | . . . 5 . Best Kill Streak 8 | . 8 3 4 4 Combat Bots Only 8 | . 8 3 4 4 Max Kills in Single Turn 2 | . 1 1 1 2 Gunslinging . | . . . . . Exploded 1 | . . . . 1 Melee 1 | . . . 1 . Uniques/NPCs Destroyed . | . . . . . Combat | -11 -10 -10 -9 -9 -------- Run | Yrd Mat Min Mat Min Hostile Shots Fired 258 | . 108 9 116 25 Missed 50 | . 19 3 25 3 Damage Taken 2679 | . 894 50 1083 652 Core 606 | . 201 . 163 242 Absorbed by Shields . | . . . . . Core Remaining (%) 59 | 100 . 19 . . Volleys Fired 114 | . 37 5 65 7 Largest 2 | . 2 2 2 2 Hottest 70 | . 70 46 68 55 Shots Fired 220 | . 74 10 123 13 Gun 214 | . 74 10 123 7 Cannon . | . . . . . Launcher 6 | . . . . 6 Special . | . . . . . Kinetic 195 | . 56 10 122 7 Thermal 18 | . 18 . . . Explosive 6 | . . . . 6 Electromagnetic 1 | . . . 1 . Robot Hit Streak 18 | . 7 3 18 5 Robot Miss Streak 5 | . 5 3 2 2 Penetration Max . | . . . . . Secondary Targets 9 | . 5 . 4 . Max Gunslinging Chain 1 | . 1 . 1 . Shots Hit Robots 161 | . 50 5 98 8 Core Hits 78 | . 22 3 45 8 Critical Kills . | . . . . . Critical Parts Destroyed 5 | . 1 . 4 . Critical Strikes 5 | . 1 . 4 . Destroy 5 | . 1 . 4 . Melee Attacks . | . . . . . Impact . | . . . . . Slashing . | . . . . . Piercing . | . . . . . Sneak Attacks . | . . . . . Combat Hostiles . | . . . . . Follow-up Attacks . | . . . . . Damage Inflicted 2719 | . 688 77 1647 307 Guns 2445 | . 685 77 1615 68 Cannons . | . . . . . Explosions 239 | . . . . 239 Melee . | . . . . . Ramming 35 | . 3 . 32 . Kinetic 2320 | . 560 77 1615 68 Thermal 125 | . 125 . . . Explosive 239 | . . . . 239 Electromagnetic . | . . . . . Impact . | . . . . . Slashing . | . . . . . Piercing . | . . . . . Highest Corruption . | . . . . . Average Corruption . | . . . . . Corruption Purged . | . . . . . Corruption Blocked . | . . . . . Overload Shots . | . . . . . Overflow Damage 1 | . . . . 1 Projectiles . | . . . . . Explosions 1 | . . . . 1 Melee . | . . . . . Knockbacks . | . . . . . Impact . | . . . . . Kinetic . | . . . . . Secondary . | . . . . . Self-Inflicted Damage 8 | . . . . 8 Shots 1 | . . . . 1 Rammed 8 | . 1 . 7 . Targets Rammed 9 | . 1 . 8 . Kicked . | . . . . . Crushed 1 | . . . 1 . Highest Temperature 207 | . 207 . 23 16 Average Temperature 60 | . 94 . 7 9 Received Heat Transfer 777 | . 342 . 435 . Siege Activations . | . . . . . Robots Corrupted . | . . . . . Combat Hostiles . | . . . . . Parts Fried . | . . . . . Impact Corruptions . | . . . . . Robots Melted . | . . . . . Combat Hostiles . | . . . . . Parts Melted 1 | . 1 . . . Heat Transferred 370 | . 370 . . . Parts Sabotaged . | . . . . . Parts Stolen . | . . . . . Parts Stripped . | . . . . . Power Chain Reactions . | . . . . . Alert | -11 -10 -10 -9 -9 ------- Run | Yrd Mat Min Mat Min Peak Influence 413 | . 413 245 350 181 Initial 160 | . . 160 95 54 Average 157 | . 100 242 174 169 Maximum Alert Level 2 | . 2 1 1 . Low Security (%) 70 | 100 74 1 73 100 Level 1 29 | . 23 98 26 . Level 2 . | . 1 . . . Level 3 . | . . . . . Level 4 . | . . . . . Level 5 . | . . . . . High Security . | . . . . . Max Security . | . . . . . Squads Dispatched 4 | . 3 . 1 . Investigation 3 | . 3 . . . Extermination . | . . . . . Reinforcement 1 | . . . 1 . Assault . | . . . . . Garrison . | . . . . . Intercept . | . . . . . Searches Triggered . | . . . . . Construction Impeded . | . . . . . Haulers Reinforced . | . . . . . Active Scanning Responses . | . . . . . Cargo Convoy Interrupts . | . . . . . Stealth | -11 -10 -10 -9 -9 --------- Run | Yrd Mat Min Mat Min Distress Signals 2 | . . . 2 . Communications Jammed . | . . . . . Distress Signals . | . . . . . Times Spotted 63 | . 23 2 26 12 Peak Tracking Total 12 | . 10 2 5 12 Tactical Retreats 7 | . 5 . 2 . Traps | -11 -10 -10 -9 -9 ------- Run | Yrd Mat Min Mat Min Traps Triggered . | . . . . . Indirectly . | . . . . . Trap Hack Attempts . | . . . . . Triggered . | . . . . . Disarmed . | . . . . . Reprogrammed 4 | . 4 . . . Reused 1 | . 1 . . . Traps Extracted . | . . . . . Installed . | . . . . . Triggered 1 | . 1 . . . Machines | -11 -10 -10 -9 -9 ---------- Run | Yrd Mat Min Mat Min Machines Disabled 1 | . 1 . . . Max in Single Turn 1 | . 1 . . . Machines Repaired . | . . . . . Machines Dismantled . | . . . . . Machines Sabotaged . | . . . . . Overloaded Fab Kills . | . . . . . Hacking | -11 -10 -10 -9 -9 --------- Run | Yrd Mat Min Mat Min Machines Accessed 10 | . 3 . 7 . Terminals 8 | . 3 . 5 . Fabricators . | . . . . . Repair Stations . | . . . . . Recycling Units 1 | . . . 1 . Scanalyzers 1 | . . . 1 . Garrison Access . | . . . . . Total Hacks 20 | . 10 . 10 . Successful 11 | . 5 . 6 . Failed 9 | . 5 . 4 . Catastrophic 2 | . . . 2 . Database Lockouts . | . . . . . Manual 2 | . 1 . 1 . Terminals 17 | . 10 . 7 . Fabricators . | . . . . . Repair Stations . | . . . . . Recycling Units 1 | . . . 1 . Scanalyzers 2 | . . . 2 . Garrison Access . | . . . . . Terminal Hacks 8 | . 5 . 3 . Robot Analysis 1 | . 1 . . . Alert Level 1 | . . . 1 . Locate Traps 3 | . 2 . 1 . Reprogram Traps 1 | . 1 . . . Maintenance Status 1 | . 1 . . . Zone Layout 1 | . . . 1 . Fabricator Hacks . | . . . . . Repair Station Hacks . | . . . . . Recycling Unit Hacks 1 | . . . 1 . Report Inventory 1 | . . . 1 . Scanalyzer 2 | . . . 2 . Insert Component 2 | . . . 2 . Garrison Access Hacks . | . . . . . Unauthorized Hacks . | . . . . . Terminals . | . . . . . Fabricators . | . . . . . Repair Stations . | . . . . . Recycling Units . | . . . . . Scanalyzers . | . . . . . Garrison Access . | . . . . . Data Cores Recovered 1 | . 1 . . . Used 1 | . 1 . . . Hacking Detections 7 | . 2 . 5 . Full Trace Events 2 | . 2 . . . Feedback Events . | . . . . . Feedback Blocked . | . . . . . Robot Schematics Acquired . | . . . . . Robots Built . | . . . . . Authchips . | . . . . . Time . | . . . . . Total Robot Build Rating . | . . . . . Part Schematics Acquired . | . . . . . Parts Built . | . . . . . Authchips . | . . . . . Time . | . . . . . Total Part Build Rating . | . . . . . Parts Repaired . | . . . . . Time . | . . . . . Parts Recycled . | . . . . . Recycled Matter . | . . . . . Retrieved Matter . | . . . . . Retrieved Components . | . . . . . Parts Scanalyzed . | . . . . . Part Schematics Acquired . | . . . . . Parts Damaged . | . . . . . Bothacking | -11 -10 -10 -9 -9 ------------ Run | Yrd Mat Min Mat Min Used RIF Installer . | . . . . . Robots Hacked . | . . . . . Non-combat . | . . . . . Combat . | . . . . . Robot Hacks Applied . | . . . . . Relay Couplers Released . | . . . . . Fabnet Peak Effective % . | . . . . . Robots Rewired . | . . . . . Allies Hacked . | . . . . . Hacks Repelled . | . . . . . Allies | -11 -10 -10 -9 -9 -------- Run | Yrd Mat Min Mat Min Total Allies . | . . . . . Largest Group . | . . . . . Highest-Rated Group . | . . . . . Highest-Rated Ally . | . . . . . Total Orders . | . . . . . Ally Attacks . | . . . . . Total Damage . | . . . . . Kills . | . . . . . Allies Corrupted . | . . . . . Allies Melted . | . . . . . Intel | -11 -10 -10 -9 -9 ------- Run | Yrd Mat Min Mat Min Robot Analysis Total 1 | . 1 . . . Derelict Logs Recovered 3 | . . 2 . 1 Drone Launches . | . . . . . Drone Recoveries . | . . . . . Exploration | -11 -10 -10 -9 -9 ------------- Run | Yrd Mat Min Mat Min Turns Passed 2776 | 61 668 180 1792 75 Spaces Moved 1168 | 40 321 101 677 29 Core 19 | 11 . . . 8 Treads 1076 | 29 321 101 604 21 Legs . | . . . . . Wheels 73 | . . . 73 . Hover . | . . . . . Flight . | . . . . . Fastest Speed 50 | 50 160 160 115 50 Average Speed 192 | 129 160 160 217 187 Slowest Speed 240 | 160 160 160 240 240 Overloaded Moves . | . . . . . Propulsion Burnouts . | . . . . . Robots Hopped . | . . . . . Cave-ins Triggered . | . . . . . Exploration Rate (%) 27 | 3 45 28 45 16 Regions Visited 4 Branch Regions 2 Pre-discovered Areas . | . . . . . Known Exits Taken 3 | . 1 1 1 . Unknown Exits Taken 1 | 1 . . . . Scrap Searched 1 | . . 1 . . Spaces Dug . | . . . . . Terrain Destroyed 30 | . . . . 30 Melee . | . . . . . Projectile . | . . . . . AOE 30 | . . . . 30 Terrain Rammed . | . . . . . Walls Destroyed . | . . . . . Machines Disabled . | . . . . . Actions | -11 -10 -10 -9 -9 --------- Run | Yrd Mat Min Mat Min Total 1469 | 47 401 112 872 37 Wait 93 | . 26 . 67 . Move 1164 | 39 320 100 676 29 Hop . | . . . . . Pick Up 36 | 3 10 4 19 . Fast Attach 18 | 5 1 . 12 . Attach 10 | . 5 1 4 . Detach 6 | . 1 . 5 . Swap 3 | . . . 2 1 Drop 16 | . . 2 14 . Fire 114 | . 37 5 65 7 Melee . | . . . . . Ram . | . . . . . Kick . | . . . . . Crush 9 | . 1 . 8 . Escape Stasis . | . . . . . Rewire . | . . . . . Trap . | . . . . . Miscellaneous . | . . . . . Route ------- -11/Scrapyard -10/Materials (discovered 2 exits: *Mat / *Min) -10/Mines -9/Materials (discovered 5 exits: *Mat x2 / *Min x2 / *Sto) -9/Mines History --------- Turn | Location | Event 11 | -11/Scrapyard | Discovered new exit (range 15) 62 | -11/Scrapyard | Entered Materials 316 | -10/Materials | Build established: Mutant 397 | -10/Materials | Discovered new exit (range 5) 406 | -10/Materials | Identified exit to Materials 505 | -10/Materials | Discovered new exit (range 11) 551 | -10/Materials | Core integrity fell below 50% 602 | -10/Materials | Destroyed 8 combat bots 604 | -10/Materials | Lost 4 parts (1p1n2w) 648 | -10/Materials | Core integrity fell below 20% 725 | -10/Materials | Identified exit to Mines 730 | -10/Materials | Entered Mines 786 | -10/Mines | Learned Materials trap positions 797 | -10/Mines | Learned 8 Materials zone layouts 902 | -10/Mines | Discovered exit to Materials (range 5) 910 | -10/Mines | Entered Materials 910 | -9/Materials | Evolved 2 slots: Utility x2 911 | -9/Materials | Identified exit to Mines 911 | -9/Materials | Identified exit to Materials 911 | -9/Materials | Identified exit to Storage 912 | -9/Materials | Loaded intel: 15 trap records 1066 | -9/Materials | Lost 3 parts (1n2w) 1784 | -9/Materials | Build established: Scavenger-Mutant 2314 | -9/Materials | Discovered exit to Mines (range 16) 2702 | -9/Materials | Entered Mines 2721 | -9/Mines | Learned Materials stockpile data 2746 | -9/Mines | Assembled infested the area 2766 | -9/Mines | Core integrity fell below 50% 2773 | -9/Mines | Released all parts (3) 2774 | -9/Mines | Core integrity fell below 20% 2777 | -9/Mines | Destroyed by D-53 Grenadier with Mini Grenade Launcher Last Messages --------------- U-05 Engineer lays Concrete. K-01 Serf collects debris. U-05 Engineer lays Concrete. U-05 Engineer builds a Wall. ALERT: Infestation in the mines, dispatching Demolisher response squad. U-05 Engineer lays Concrete. U-05 Engineer builds a Wall. C-30 ARC bursts open, deploying its payload. D-53 Grenadier unfolds itself. Lgt. Armor Plating destroyed. Lgt. Treads destroyed. The unstable cave ceiling collapses. Minigun destroyed. Lgt. Treads destroyed. Mni. Grenade Launcher destroyed. Signal Interpreter destroyed. Released Transport Network Coupler. Released Ion Engine. Released Hcp. Storage Unit. Map ----- +----------------------------------------------------+ | ?????????????????????????????????????????????? | | ?????????????????????????????????????????????? | | ?????????????????????????????????????????????? | | ?????????????????????????????????????????????? | | ?????????????????????????????????????????????? | | ?????????????????????????????????????????????? | | ????????????????????? ???????????????????????? | | ????????????????????? ?#???????????????????? | | ????????????????????# ##??????????????????? | | ???????????????????? % ???????????????????? | | ???????????????????? ???????????????????? | | ????????????????????" ????????????????????? | | ???????????????????? #????????????????????? | | ???????????????????? #????????????????????? | | ???????????????????# #????????????????????? | | ???????????????????# #?????????????????????? | | ????????????######## #??????????????????????? | | ???????????## #### #?????????????????? | | ??????????## ???????????????????? | | ??????????# ] #?????????????????????? | | ?????????## !==! #?????????????????????? | | ????????## !=**[ #?????????????????????? | | ????????# !!!= ##?????????????????????? | | ???????## ![= ##??????????????????????? | | ?????### ###?????????????????????? | | ????## # # @ #?????????????????????? | | ???## ??????????????????? | | ??## d #?????????????????? | | ?## #?????????????????? | | ?# d #?????????????????? | | ?# #?????????????????? | | ?# ## #?????????????????? | | ?## r ## ##?????????????????? | | ??#### % # # ##??????????????????? | | ?????## # ##???????????????????? | | ??????## = [ ####????????????????????? | | ???????# ## #?????????????????????? | | ???????# ### # # #?????????????????????? | | ???????# #?# # # #?????????????????????? | | ???????# #?# #####?# ###?????????????????????? | | ???????# ? #??????? #??????????????????????? | | ???????###?# #????????#??????????????????????? | | ???????????? #???????????????????????????????? | | ???????????? #???????????????????????????????? | | ???????????? #???????????????????????????????? | | ???????????? ???????????????????????????????? | | ????????????##???????????????????????????????? | | ?????????????????????????????????????????????? | | ?????????????????????????????????????????????? | | ?????????????????????????????????????????????? | +----------------------------------------------------+ Best States ------------- Heat Dissipation 28 Coolant Potential 50 Energy Generation 10 Energy Capacity 250 Matter Stores 300 Matter Capacity 300 Sight Range 16 Terrain Scan Density 10 Armor Coverage 150 Evasion (%) 50 Recoil Reduction 2 Item Schematics ----------------- None Robot Schematics ------------------ None Fabricated ------------ Nothing Alien Tech Used ----------------- None Achievements -------------- Dynamic Key Party Time Challenges ------------ None Game ------ Seed DecoderAnalysisDissipator Manual? 0 Play Time 00:32:54 Cumulative 12.8 hours Start 2024.04.12 @ 14:59:16 End 2024.04.12 @ 15:31:05 Sessions 1 Manual Loads 0 Difficulty Rogue Special Mode None Game No. 12 Rogue 12 Adventurer 0 Explorer 0 Win Type - Total 0 Types 0/0/0/0/0/0/0/0/0 Lore% 14 Gallery% 17 Achievement% 19 Wizard Run 0 Options --------- Layout 1 ASCII 0 Keyboard 1 Movement Arrows Keybinds 0 Fullscreen 1 Font 32/SmallcapsGlow Map View 50x35 Zoom Use 0% Tactical HUD 0 Map Filters NONE Filters NONE Steam 0 RUN: 9f045247-4fff-42fd-b292-151cce221d2e